bitfinex-derivatives/quotes_SOLF0:USTF0_20250328
["timestamp","ask_amount","ask_price","bid_price","bid_amount"]
[1743179924118,0.05011836,129.69,129.68,7.7157]
[1743179924624,0.05011836,129.69,129.67,7.77515193]
[1743179925224,0.05011836,129.69,129.68,7.7157]
[1743179927126,0.05011836,129.69,129.67,0.05915193]
[1743179928128,7.7157,129.68,129.67,0.05915193]
[1743179929624,0.05011836,129.69,129.67,0.05915193]
[1743179931525,7.76541836,129.69,129.67,0.05915193]
[1743179932120,0.05011836,129.69,129.67,0.05915193]
[1743179933229,0.05011836,129.69,129.67,7.77545193]
[1743179933635,0.05011836,129.69,129.67,0.05915193]
[1743179934428,0.05011836,129.69,129.67,7.77545193]
[1743179934928,0.05011836,129.69,129.67,0.05915193]
[1743179935130,0.05011836,129.69,129.68,7.7157]
[1743179935330,0.05011836,129.69,129.68,20.04769081]
[1743179936834,0.05011836,129.69,129.68,7.7157]
[1743179937431,7.7124,129.74,129.71,7.7137]
[1743179938232,30.7839,129.76,129.68,19.26627025]
[1743179938634,0.05848342,129.73,129.71,0.05197306]
[1743179939031,0.05848342,129.73,129.71,7.76547306]
[1743179940545,0.05848342,129.73,129.71,0.05197306]
[1743179941141,7.77128342,129.73,129.71,7.76577306]
[1743179941442,7.77128342,129.73,129.71,0.05197306]
[1743179942834,7.7133,129.72,129.71,0.05197306]
[1743179944130,48.12475367,129.73,129.65,364.0]
[1743179944331,48.06627025,129.73,129.66,7.7166]
[1743179944942,7.7154,129.69,129.66,7.7166]
[1743179945345,7.7158,129.68,129.66,7.76913752]
[1743179945645,7.7158,129.68,129.66,0.05253752]
[1743179945838,0.05502062,129.69,129.66,0.05253752]
[1743179946244,0.05502062,129.69,129.68,7.7157]
[1743179946950,0.05502062,129.69,129.67,7.716]
[1743179948348,7.77012062,129.69,129.67,7.716]
[1743179949843,0.05502062,129.69,129.67,7.716]
[1743179950648,7.77022062,129.69,129.67,7.716]
[1743179952050,7.7159,129.68,129.66,7.76913752]
[1743179952558,0.05502062,129.69,129.66,0.05253752]
[1743179952856,7.7163,129.67,129.66,0.05253752]
[1743179954254,7.7162,129.68,129.66,0.05253752]
[1743179954451,0.05502062,129.69,129.66,0.05253752]
[1743179954748,0.05502062,129.69,129.66,7.76903752]
[1743179954944,7.716,129.68,129.66,7.76903752]
[1743179955141,0.05502062,129.69,129.66,0.05253752]
[1743179955547,7.7163,129.67,129.66,0.05253752]
[1743179956857,41.14343048,129.67,129.62,12.34343048]
[1743179957057,12.34343048,129.66,129.62,12.34343048]
[1743179957354,41.14343048,129.67,129.64,7.718]
[1743179957654,7.7171,129.66,129.63,12.34343048]
[1743179957853,7.7171,129.66,129.64,0.05663045]
[1743179958754,48.91645566,129.67,129.64,7.77463045]
[1743179959055,12.34343048,129.66,129.64,0.05663045]
[1743179959448,12.34343048,129.65,129.6,12.34343048]
[1743179959644,12.34343048,129.64,129.6,12.34343048]
[1743179959857,7.7191,129.63,129.6,20.06363048]
[1743179960750,7.76946568,129.63,129.6,12.39552697]
[1743179961156,0.05036568,129.63,129.6,0.05209649]
[1743179961347,12.39379616,129.63,129.6,0.05209649]
[1743179961549,20.11279616,129.63,129.6,0.05209649]
[1743179961950,0.05036568,129.63,129.6,12.39552697]
[1743179962150,0.05036568,129.63,129.61,20.06293048]
[1743179962352,0.05036568,129.63,129.61,12.34343048]
[1743179962753,0.05036568,129.63,129.62,20.06273048]
[1743179964460,0.05036568,129.63,129.62,12.34343048]
[1743179964960,0.05036568,129.63,129.62,20.06273048]
[1743179966562,41.14343048,129.7,129.62,12.34343048]
[1743179966863,7.7154,129.69,129.65,12.34343048]
[1743179967164,7.7154,129.69,129.66,12.34343048]
[1743179967458,12.34343048,129.7,129.66,12.34343048]
[1743179967763,7.7158,129.68,129.66,12.39927284]
[1743179968361,7.7163,129.67,129.66,0.05584236]
[1743179968556,20.05973048,129.67,129.66,0.05584236]
[1743179968969,7.7163,129.67,129.66,0.05584236]
[1743179970255,7.7181,129.64,129.63,28.8]
[1743179970762,12.34343048,129.66,129.63,28.8]
[1743179970962,12.34343048,129.67,129.63,28.8]
[1743179971661,7.7178,129.65,129.64,0.0580107]
[1743179973057,7.77397647,129.66,129.64,0.0580107]
[1743179973262,0.05677647,129.66,129.64,0.0580107]
[1743179973462,7.77397647,129.66,129.64,0.0580107]
[1743179973863,0.05677647,129.66,129.64,0.0580107]
[1743179974064,7.7175,129.65,129.64,0.0580107]
[1743179974463,7.77397647,129.66,129.64,0.0580107]
[1743179974660,0.05677647,129.66,129.65,12.34343048]
[1743179975264,0.05677647,129.66,129.64,0.0580107]
[1743179975659,7.7175,129.65,129.64,0.0580107]
[1743179976060,0.05677647,129.66,129.64,20.11954118]
[1743179976362,0.05677647,129.66,129.64,12.40144118]
[1743179976556,7.7175,129.65,129.64,12.40144118]
[1743179976761,7.7175,129.65,129.64,0.0580107]
[1743179978662,0.05677647,129.66,129.64,12.40144118]
[1743179978970,0.05677647,129.66,129.65,12.34343048]
[1743179979357,0.05677647,129.66,129.64,7.7759107]
[1743179979358,0.05677647,129.66,129.64,20.11934118]
[1743179980473,0.05677647,129.66,129.65,20.06093048]
[1743179980773,0.05677647,129.66,129.65,12.34343048]
[1743179983367,0.05677647,129.66,129.64,12.40144118]
[1743179983764,7.77397647,129.66,129.64,12.40144118]
[1743179984376,7.7175,129.65,129.64,12.40144118]
[1743179984577,7.7175,129.65,129.64,0.0580107]
[1743179985077,7.77397647,129.66,129.64,12.40144118]
[1743179986170,7.7175,129.65,129.64,12.40144118]
[1743179986473,7.7175,129.65,129.64,0.0580107]
[1743179986875,20.06093048,129.65,129.64,0.0580107]
[1743179987577,7.7175,129.65,129.64,0.0580107]
[1743179991281,7.77397647,129.66,129.64,7.7761107]
[1743179991483,7.77397647,129.66,129.64,20.11954118]
[1743179991978,7.77397647,129.66,129.65,12.34343048]
[1743179992380,0.05677647,129.66,129.65,20.06093048]
[1743179994383,7.77367647,129.66,129.65,12.34343048]
[1743179994682,0.05677647,129.66,129.65,12.34343048]
[1743179995880,0.05677647,129.66,129.65,20.06093048]
[1743179997081,2.079,129.71,129.67,7.7159]
[1743179997274,2.079,129.71,129.67,12.34343048]
[1743179997480,14.42243048,129.71,129.66,12.34343048]
[1743179997681,7.7156,129.69,129.66,12.34343048]
[1743179998185,14.42243048,129.71,129.66,12.34343048]
[1743179998186,7.7148,129.7,129.67,12.34343048]
[1743179998382,0.05292441,129.69,129.67,12.34343048]
[1743179999089,7.76842441,129.69,129.67,12.34343048]
[1743179999285,0.05292441,129.69,129.66,41.17707135]
[1743179999486,7.7157,129.68,129.66,41.17707135]
[1743179999682,0.05292441,129.69,129.66,41.17707135]
[1743180000289,7.7163,129.67,129.66,28.83364087]
[1743180000495,7.7163,129.67,129.66,0.05364087]
[1743180000991,20.05973048,129.67,129.66,0.05364087]
[1743180001793,7.7163,129.67,129.66,0.05364087]
[1743180002292,0.05292441,129.69,129.66,0.05364087]
[1743180002491,0.05292441,129.69,129.66,12.39707135]
[1743180002695,12.34343048,129.68,129.66,0.05364087]
[1743180003804,7.7163,129.67,129.66,0.05364087]
[1743180004194,0.05292441,129.69,129.66,0.05364087]
[1743180004593,0.05292441,129.69,129.66,12.39707135]
[1743180004795,0.05292441,129.69,129.68,12.34343048]
[1743180004999,0.05292441,129.69,129.67,12.34343048]
[1743180005199,7.7158,129.68,129.66,12.39707135]
[1743180005398,0.05292441,129.69,129.66,0.05364087]
[1743180005598,7.7162,129.68,129.66,0.05364087]
[1743180006105,0.05292441,129.69,129.66,12.39707135]
[1743180006307,0.05292441,129.69,129.67,12.34343048]
[1743180006807,0.05292441,129.69,129.67,20.05953048]
[1743180007102,0.05292441,129.69,129.67,12.34343048]
[1743180007896,7.76832441,129.69,129.67,12.34343048]
[1743180008101,0.05292441,129.69,129.68,12.34343048]
[1743180009311,14.42623048,129.75,129.68,41.12343048]
[1743180009606,14.42623048,129.75,129.71,12.34343048]
[1743180009808,12.34343048,129.73,129.69,12.34343048]
[1743180010308,7.7136,129.72,129.69,12.34343048]
[1743180010508,7.7699021,129.72,129.7,0.05255208]
[1743180012005,0.0563021,129.72,129.7,20.11048256]
[1743180012210,0.0563021,129.72,129.71,12.34343048]
[1743180014605,7.7696021,129.72,129.71,12.34343048]
[1743180014802,7.7696021,129.72,129.7,20.11018256]
[1743180015309,0.0563021,129.72,129.71,20.05733048]
[1743180015610,0.0563021,129.72,129.71,12.34343048]
[1743180015913,0.0563021,129.72,129.7,12.39598256]
[1743180016113,0.0563021,129.72,129.7,20.11028256]
[1743180016317,0.0563021,129.72,129.71,12.34343048]
[1743180017315,0.0563021,129.72,129.71,20.05733048]
[1743180019206,14.39263048,129.77,129.71,20.05733048]
[1743180019207,14.39263048,129.77,129.73,7.7122]
[1743180019509,7.7113,129.76,129.74,12.34343048]
[1743180022119,0.0570492,129.73,129.72,20.05673048]
[1743180022512,0.0570492,129.73,129.72,12.34343048]
[1743180027323,7.7697492,129.73,129.72,12.34343048]
[1743180027725,0.0570492,129.73,129.72,12.34343048]
[1743180032122,0.0570492,129.73,129.72,20.05673048]
[1743180032528,0.0570492,129.73,129.72,12.34343048]
[1743180034130,0.0570492,129.73,129.72,20.05673048]
[1743180035032,12.34343048,129.78,129.73,7.7123]
[1743180035234,12.34343048,129.79,129.75,12.34343048]
[1743180035630,7.7101,129.78,129.75,20.05493048]
[1743180036035,7.7101,129.78,129.76,12.34343048]
[1743180036232,0.05074609,129.78,129.77,12.34343048]
[1743180036732,0.05074609,129.78,129.77,20.05383048]
[1743180036933,7.7082,129.81,129.77,12.34343048]
[1743180037235,7.709,129.8,129.78,12.34343048]
[1743180037430,12.34343048,129.82,129.78,12.34343048]
[1743180037626,12.34343048,129.79,129.74,41.08343048]
[1743180038026,7.7108,129.77,129.75,0.0578552]
[1743180038226,0.05266774,129.78,129.75,0.0578552]
[1743180038433,12.39609822,129.78,129.75,0.0578552]
[1743180038634,7.711,129.76,129.75,0.0578552]
[1743180042241,20.05443048,129.76,129.75,0.0578552]
[1743180045641,7.711,129.76,129.75,0.0578552]
[1743180045942,20.05443048,129.76,129.75,0.0578552]
[1743180050740,7.711,129.76,129.75,0.0578552]
[1743180053248,7.7107,129.77,129.75,0.0578552]
[1743180053449,28.79266774,129.78,129.75,0.0578552]
[1743180053749,7.711,129.76,129.75,0.0578552]
[1743180053949,28.79266774,129.78,129.75,0.0578552]
[1743180054143,0.05266774,129.78,129.75,12.40128568]
[1743180054344,7.76266774,129.78,129.75,20.11248568]
[1743180054749,7.76266774,129.78,129.75,12.40128568]
[1743180054951,7.7104,129.77,129.75,12.40128568]
[1743180055248,0.05266774,129.78,129.75,12.40128568]
[1743180055449,7.711,129.76,129.75,0.0578552]
[1743180056052,0.05266774,129.78,129.75,12.40128568]
[1743180056053,7.7108,129.77,129.75,12.40128568]
[1743180056856,7.711,129.76,129.75,12.40128568]
[1743180057457,7.7107,129.77,129.75,12.40128568]
[1743180057853,0.05266774,129.78,129.76,12.34343048]
[1743180058151,81.74491217,129.85,129.77,20.05343048]
[1743180058353,66.33271217,129.85,129.79,12.34343048]
[1743180058545,66.33271217,129.85,129.8,12.34343048]
[1743180058750,7.7076,129.82,129.8,12.34343048]
[1743180059258,7.7076,129.82,129.8,12.39646727]
[1743180059259,7.75921012,129.82,129.8,12.39646727]
[1743180059744,7.708,129.81,129.8,0.05303679]
[1743180062258,20.05143048,129.81,129.8,3.679e-05]
[1743180062555,20.04343048,129.81,129.74,12.34343048]
[1743180062765,12.34343048,129.78,129.73,41.06343048]
[1743180063261,7.7118,129.75,129.73,41.06343048]
[1743180063865,0.05856933,129.75,129.74,12.34343048]
[1743180064256,0.05856933,129.75,129.74,20.05553048]
[1743180064755,41.06343048,129.8,129.74,12.34343048]
[1743180064950,12.34343048,129.82,129.77,12.34343048]
[1743180065755,7.7091,129.8,129.77,12.34343048]
[1743180065959,7.7091,129.8,129.78,0.05888219]
[1743180066764,7.7091,129.8,129.78,12.40231267]
[1743180067060,7.76475354,129.81,129.78,20.11191267]
[1743180067265,0.05655354,129.81,129.8,12.34343048]
[1743180069373,0.05655354,129.81,129.79,28.72]
[1743180069673,12.39998402,129.81,129.78,0.05888219]
[1743180070060,7.7092,129.79,129.78,0.05888219]
[1743180070769,20.05263048,129.79,129.78,0.05888219]
[1743180070961,12.34343048,129.79,129.73,12.34343048]
[1743180071164,12.34343048,129.78,129.73,12.34343048]
[1743180071469,7.7117,129.75,129.73,12.34343048]
[1743180072169,7.7117,129.75,129.73,12.39680202]
[1743180072170,7.76789718,129.75,129.73,12.39680202]
[1743180072669,0.05619718,129.75,129.73,20.10950202]
[1743180072871,0.05619718,129.75,129.73,0.05337154]
[1743180073062,7.76779718,129.75,129.73,0.05337154]
[1743180073263,0.05619718,129.75,129.73,0.05337154]
[1743180073663,7.7121,129.74,129.73,0.05337154]
[1743180075865,19.25216002,129.74,129.67,28.72]
[1743180076267,7.7131,129.73,129.68,19.25216002]
[1743180076576,19.25216002,129.76,129.68,19.25216002]
[1743180076877,7.77122217,129.73,129.71,0.05895749]
[1743180077577,0.05842217,129.73,129.71,7.77285749]
[1743180077966,0.05842217,129.73,129.71,0.05895749]
[1743180078170,0.05842217,129.73,129.72,7.7133]
[1743180078776,36.4309,129.77,129.74,7.7119]
[1743180079078,32.7412,129.8,129.74,19.25216002]
[1743180079573,7.711,129.76,129.73,28.72]
[1743180079774,51.99336002,129.8,129.73,28.72]
[1743180079971,0.05469642,129.76,129.73,28.7727829]
[1743180080172,7.76599642,129.76,129.73,28.7727829]
[1743180081379,0.05469642,129.76,129.73,28.7727829]
[1743180081575,0.05469642,129.76,129.74,19.25216002]
[1743180081773,0.05469642,129.76,129.74,26.96386002]
[1743180082075,28.72,129.83,129.74,19.25216002]
[1743180082274,19.25216002,129.82,129.75,19.25216002]
[1743180082777,7.7107,129.77,129.75,19.25216002]
[1743180083178,7.76880728,129.77,129.75,19.30559923]
[1743180083375,7.76880728,129.77,129.75,0.05343921]
[1743180084283,7.711,129.76,129.75,0.05343921]
[1743180088581,7.711,129.76,129.68,4.0763]
[1743180088582,7.7133,129.73,129.68,23.32846002]
[1743180088786,21.27706002,129.76,129.68,52.04846002]
[1743180088985,21.27706002,129.76,129.68,23.32846002]
[1743180089185,2.0069,129.75,129.68,23.32846002]
[1743180089387,7.7137,129.72,129.68,23.32846002]
[1743180089585,28.72,129.74,129.68,19.25216002]
[1743180089887,0.05344257,129.71,129.69,0.05806546]
[1743180090095,0.05344257,129.71,129.7,7.7144]
[1743180091099,0.05344257,129.71,129.69,36.49276546]
[1743180091398,0.05344257,129.71,129.69,7.77276546]
[1743180092598,0.05344257,129.71,129.7,7.7145]
[1743180092798,0.05344257,129.71,129.69,0.05806546]
[1743180093199,0.05344257,129.71,129.69,7.77286546]
[1743180093803,0.05344257,129.71,129.7,7.7145]
[1743180095103,0.05344257,129.71,129.7,20.04114665]
[1743180095300,0.05344257,129.71,129.7,12.32664665]
[1743180098092,7.76734257,129.71,129.7,12.32664665]
[1743180098297,0.05344257,129.71,129.69,12.38471211]
[1743180099604,7.7145,129.7,129.69,12.38471211]
[1743180100301,7.7145,129.7,129.69,0.05806546]
[1743180111917,7.76764257,129.71,129.69,0.05806546]
[1743180112710,7.7145,129.7,129.69,0.05806546]
[1743180113218,20.04114665,129.7,129.69,0.05806546]
[1743180113520,12.32664665,129.66,129.62,12.32664665]
[1743180113913,12.32664665,129.66,129.61,12.32664665]
[1743180114611,7.7186,129.64,129.62,0.05890119]
[1743180115220,7.7186,129.64,129.62,12.38554784]
[1743180119223,7.7187,129.63,129.62,0.05890119]
[1743180119910,7.7184,129.64,129.62,0.05890119]
[1743180120120,7.7184,129.64,129.62,12.38554784]
[1743180120822,7.7184,129.64,129.62,0.05890119]
[1743180121026,0.05688313,129.65,129.63,12.32664665]
[1743180121222,0.05688313,129.65,129.64,7.7181]
[1743180122727,0.05688313,129.65,129.64,20.04474665]
[1743180124218,1.996,129.7,129.67,7.7161]
[1743180124421,30.7061,129.71,129.67,12.32664665]
[1743180124922,30.7061,129.71,129.68,12.32664665]
[1743180125128,28.72,129.71,129.68,12.32664665]
[1743180125423,7.76316099,129.71,129.68,20.09132837]
[1743180127032,7.76316099,129.71,129.69,12.32664665]
[1743180127626,0.04896099,129.71,129.7,20.04114665]
[1743180128228,0.04896099,129.71,129.7,12.32664665]
[1743180130234,7.76286099,129.71,129.7,12.32664665]
[1743180131836,0.04896099,129.71,129.7,12.32664665]
[1743180132632,0.04896099,129.71,129.7,20.04114665]
[1743180133337,28.7,129.76,129.72,7.7133]
[1743180133534,28.7,129.76,129.72,20.03994665]
[1743180133744,12.32664665,129.78,129.73,12.32664665]
[1743180133932,45.29264665,129.79,129.74,20.03874665]
[1743180134132,45.29264665,129.79,129.74,12.32664665]
[1743180134329,7.7106,129.77,129.74,12.32664665]
[1743180134530,7.7106,129.77,129.75,0.04946781]
[1743180134731,7.76571199,129.78,129.75,12.37611446]
[1743180135040,0.05571199,129.78,129.75,0.04946781]
[1743180135238,0.05571199,129.78,129.76,19.24659779]
[1743180135427,0.05571199,129.78,129.76,47.94659779]
[1743180135634,0.05571199,129.78,129.77,7.7104]
[1743180137241,10.61162055,129.83,129.77,7.7]
[1743180137437,10.61162055,129.83,129.8,19.24659779]
[1743180137629,10.61162055,129.83,129.8,26.95459779]
[1743180138033,10.61162055,129.83,129.8,19.24659779]
[1743180138234,0.04929152,129.83,129.8,21.28331407]
[1743180138435,0.04929152,129.83,129.8,83.28331407]
[1743180138736,7.75639152,129.83,129.8,90.99191407]
[1743180138940,0.04929152,129.83,129.8,62.05071628]
[1743180139333,7.7074,129.82,129.8,0.05071628]
[1743180139737,0.04929152,129.83,129.8,0.05071628]
[1743180139936,7.75639152,129.83,129.8,7.75911628]
[1743180140539,0.04929152,129.83,129.8,0.05071628]
[1743180141737,7.7077,129.82,129.8,0.05071628]
[1743180142541,7.75639152,129.83,129.8,7.75931628]
[1743180142738,0.04929152,129.83,129.8,7.75931628]
[1743180143137,0.04929152,129.83,129.8,0.05071628]
[1743180143335,0.04929152,129.83,129.81,19.24659779]
[1743180143941,0.04929152,129.83,129.8,0.05071628]
[1743180144847,7.75649152,129.83,129.8,0.05071628]
[1743180145341,0.04929152,129.83,129.8,0.05071628]
[1743180146251,0.04929152,129.83,129.8,62.05071628]
[1743180146544,0.04929152,129.83,129.81,7.7076]
[1743180147040,0.04929152,129.83,129.8,0.05071628]
[1743180147246,0.04929152,129.83,129.82,7.7074]
[1743180148145,0.04929152,129.83,129.81,55.63429779]
[1743180148747,0.04929152,129.83,129.82,7.7074]
[1743180149344,0.04929152,129.83,129.81,55.63429779]
[1743180149547,0.04929152,129.83,129.81,117.63429779]
[1743180149937,0.04929152,129.83,129.81,28.68]
[1743180150145,0.04929152,129.83,129.8,0.05071628]
[1743180150644,0.04929152,129.83,129.8,7.75901628]
[1743180150845,0.04929152,129.83,129.8,0.05071628]
[1743180151450,7.708,129.81,129.8,0.05071628]
[1743180152448,7.7076,129.82,129.8,0.05071628]
[1743180153644,7.708,129.81,129.8,0.05071628]
[1743180155346,7.708,129.81,129.8,1.628e-05]
[1743180155653,19.24659779,129.82,129.75,26.95809779]
[1743180156055,19.24659779,129.82,129.74,290.7917]
[1743180156555,7.7103,129.78,129.77,0.05483455]
[1743180157055,7.7119,129.75,129.71,19.24659779]
[1743180157249,7.7119,129.75,129.71,47.90659779]
[1743180157456,47.90659779,129.8,129.72,7.7131]
[1743180157658,7.7114,129.76,129.72,7.7131]
[1743180158050,0.05448861,129.75,129.73,0.05652426]
[1743180158355,0.05448861,129.75,129.73,7.76922426]
[1743180158749,0.05448861,129.75,129.74,7.7121]
[1743180158944,0.05448861,129.75,129.74,36.3721]
[1743180159145,0.05448861,129.75,129.74,28.66]
[1743180159756,0.05448861,129.75,129.73,0.05652426]
[1743180160057,7.76628861,129.75,129.73,0.05652426]
[1743180160255,0.05448861,129.75,129.73,0.05652426]
[1743180160955,7.7121,129.74,129.73,0.05652426]
[1743180161869,7.7143,129.71,129.67,19.24659779]
[1743180162177,19.24659779,129.74,129.67,19.24659779]
[1743180163169,0.05118487,129.72,129.69,0.05785428]
[1743180163672,7.76498487,129.72,129.69,0.05785428]
[1743180164271,7.7141,129.71,129.69,0.05785428]
[1743180165170,7.7145,129.7,129.69,0.05785428]
[1743180166273,19.29778266,129.72,129.64,28.68]
[1743180166462,2.113,129.71,129.64,28.68]
[1743180167068,7.7154,129.69,129.65,7.7173]
[1743180167279,2.113,129.71,129.64,28.68]
[1743180167467,2.113,129.71,129.66,0.05159262]
[1743180167468,0.05353636,129.68,129.66,0.05159262]
[1743180167777,7.76953636,129.68,129.66,0.05159262]
[1743180168274,0.05353636,129.68,129.66,0.05159262]
[1743180168871,7.7163,129.67,129.66,0.05159262]
[1743180169475,7.76953636,129.68,129.66,0.05159262]
[1743180169970,0.05353636,129.68,129.66,0.05159262]
[1743180170363,0.05353636,129.68,129.66,7.76839262]
[1743180170570,0.05353636,129.68,129.66,0.05159262]
[1743180171075,7.76943636,129.68,129.66,0.05159262]
[1743180171572,0.05353636,129.68,129.66,7.76819262]
[1743180172474,0.05353636,129.68,129.66,0.05159262]
[1743180172875,0.05353636,129.68,129.67,7.7163]
[1743180173775,0.05353636,129.68,129.66,7.76829262]
[1743180174274,0.05353636,129.68,129.66,0.05159262]
[1743180174478,3.9913,129.74,129.67,19.24659779]
[1743180174777,7.7137,129.72,129.68,28.68]
[1743180174972,7.7137,129.72,129.68,36.3955]
[1743180175376,7.7137,129.72,129.68,28.68]
[1743180175578,7.76698241,129.71,129.69,0.05132992]
[1743180175875,0.05298241,129.71,129.69,0.05132992]
[1743180176180,7.7145,129.7,129.69,0.05132992]
[1743180176776,7.76718241,129.71,129.69,0.05132992]
[1743180177779,7.7145,129.7,129.69,0.05132992]
[1743180178877,7.7145,129.7,129.69,2.992e-05]
[1743180179172,26.96109779,129.7,129.69,2.992e-05]
[1743180181275,26.96659779,129.7,129.59,2.0687]
[1743180181473,19.24659779,129.68,129.59,21.31529779]
[1743180181679,30.6406,129.71,129.59,49.99529779]
[1743180181680,19.24659779,129.66,129.59,49.99529779]
[1743180181882,7.7201,129.61,129.59,19.24659779]
[1743180182080,21.23339779,129.66,129.59,19.24659779]
[1743180182581,0.05812208,129.64,129.56,258.4672]
[1743180182780,28.68,129.63,129.61,0.05780112]
[1743180182979,21.23339779,129.66,129.61,0.05780112]
[1743180183180,0.04902283,129.63,129.61,0.05780112]
[1743180183576,7.76822283,129.63,129.61,0.05780112]
[1743180184081,0.04902283,129.63,129.61,0.05780112]
[1743180185977,0.04902283,129.63,129.62,36.3993]
[1743180187989,21.19349779,129.7,129.62,47.92659779]
[1743180188185,7.7161,129.68,129.62,50.08139779]
[1743180188487,49.87349779,129.7,129.62,50.08139779]
[1743180188678,49.87349779,129.7,129.64,7.7177]
[1743180189389,0.05769669,129.68,129.66,0.05744426]
[1743180190788,0.05769669,129.68,129.66,19.30404205]
[1743180191190,0.05769669,129.68,129.67,7.7163]
[1743180191984,7.7135,129.72,129.69,7.7149]
[1743180192292,7.7135,129.72,129.69,36.3949]
[1743180192688,7.7143,129.71,129.69,28.68]
[1743180192885,19.24659779,129.74,129.69,28.68]
[1743180193194,19.24659779,129.72,129.7,0.05089353]
[1743180193687,7.7139,129.71,129.7,0.05089353]
[1743180194492,7.7139,129.71,129.65,36.3972]
[1743180194493,50.11816238,129.72,129.65,28.68]
[1743180194791,50.06209779,129.72,129.65,28.68]
[1743180194993,7.7142,129.71,129.66,19.24659779]
[1743180195492,7.7142,129.71,129.68,7.7154]
[1743180195688,0.05792326,129.7,129.67,0.05374651]
[1743180195992,0.05792326,129.7,129.66,19.24659779]
[1743180195993,0.05792326,129.7,129.66,21.29259779]
[1743180196187,0.05792326,129.7,129.67,0.05897819]
[1743180196386,0.05792326,129.7,129.69,7.7151]
[1743180196695,0.05792326,129.7,129.68,28.68]
[1743180196991,0.05792326,129.7,129.68,36.3954]
[1743180197191,0.05792326,129.7,129.68,28.68]
[1743180198392,0.05792326,129.7,129.68,36.3954]
[1743180198584,0.05792326,129.7,129.67,0.05897819]
[1743180199085,7.7157,129.68,129.67,0.05897819]
[1743180199881,7.7178,129.65,129.61,32.755]
[1743180200379,7.7173,129.66,129.63,7.7185]
[1743180200583,19.24659779,129.68,129.61,32.755]
[1743180200984,7.7176,129.65,129.63,0.05553645]
[1743180201695,7.77397517,129.66,129.63,7.77423645]
[1743180204294,7.7181,129.64,129.63,0.05553645]
[1743180204791,19.24659779,129.64,129.56,4.2195]
[1743180204997,19.24659779,129.64,129.57,7.7218]
[1743180205298,19.24659779,129.64,129.56,4.2195]
[1743180205594,7.7202,129.61,129.57,7.7219]
[1743180205897,7.77911054,129.61,129.59,0.05401391]
[1743180206696,7.7205,129.6,129.59,0.05401391]
[1743180210795,7.7205,129.6,129.59,1.391e-05]
[1743180210990,26.96709779,129.6,129.59,1.391e-05]
[1743180211191,55.64709779,129.6,129.59,1.391e-05]
[1743180214398,76.98659558,129.6,129.51,254.52]
[1743180214701,19.24659779,129.57,129.49,36.4065]
[1743180214902,28.68,129.56,129.49,28.68]
[1743180215395,7.7245,129.54,129.5,7.7261]
[1743180215600,7.78010633,129.54,129.51,0.05740158]
[1743180215797,0.05560633,129.54,129.51,0.05740158]
[1743180215995,7.7252,129.52,129.51,0.05740158]
[1743180216202,0.05560633,129.54,129.51,0.05740158]
[1743180217004,7.77980633,129.54,129.51,0.05740158]
[1743180217205,0.05560633,129.54,129.51,0.05740158]
[1743180217702,7.77980633,129.54,129.51,0.05740158]
[1743180218003,0.05560633,129.54,129.51,7.78320158]
[1743180219602,7.77970633,129.54,129.51,7.78320158]
[1743180219798,0.05560633,129.54,129.52,7.7252]
[1743180219990,0.05560633,129.54,129.52,19.24659779]
[1743180221503,7.78000633,129.54,129.52,19.24659779]
[1743180221804,0.05560633,129.54,129.52,19.24659779]
[1743180222006,0.05560633,129.54,129.52,26.97159779]
[1743180222407,0.05560633,129.54,129.52,19.24659779]
[1743180222707,0.05560633,129.54,129.52,26.97159779]
[1743180224504,0.05560633,129.54,129.52,19.24659779]
[1743180224505,7.77970633,129.54,129.52,19.24659779]
[1743180225197,0.05560633,129.54,129.52,26.97179779]
[1743180225504,0.05560633,129.54,129.52,19.24659779]
[1743180225703,7.78020633,129.54,129.52,19.24659779]
[1743180228010,0.05560633,129.54,129.51,0.05740158]
[1743180228302,7.7246,129.53,129.51,0.05740158]
[1743180230013,7.7252,129.52,129.51,0.05740158]
[1743180230704,7.7249,129.53,129.51,0.05740158]
[1743180230899,0.05560633,129.54,129.51,12.42268792]
[1743180231304,7.7246,129.53,129.51,12.42268792]
[1743180231910,7.7252,129.52,129.51,12.42268792]
[1743180232104,0.05560633,129.54,129.51,20.14848792]
[1743180232306,0.05560633,129.54,129.52,12.36528634]
[1743180232507,7.78000633,129.54,129.52,12.36528634]
[1743180233714,0.05560633,129.54,129.53,12.36528634]
[1743180237309,7.77970633,129.54,129.53,12.36528634]
[1743180239715,0.05560633,129.54,129.53,12.36528634]
[1743180239916,0.05560633,129.54,129.53,20.08988634]
[1743180240207,7.7211,129.59,129.58,12.36528634]
[1743180241017,7.7217,129.58,129.57,12.36528634]